Cogmind - Beta 12 @@@ ROGUE MODE // 2023.10.26 @ 11:07:26 Player: wchar_t Result: Destroyed by Striker with Compact Linear Accelerator Performance ------------- Evolutions (8) 4000 Regions Visited (17) 3400 Robots Destroyed (29) 145 Value Destroyed (724) 724 Prototype IDs (29) 580 Alien Tech Used (7) 1400 Bonus (6301) 6301 TOTAL SCORE: 16550 Bonus ------- Pacifist 200 Triggered Max Security 2000 High Alert Combat Kills 301 Entered DSFs 500 Aligned with FarCom 300 Used Core Reset Matrix 3000 Cogmind --------- Core Integrity 0/1450 Matter 300/300 Energy 99/100 System Corruption 0% Temperature Cool (0) Movement Core (50) Location -2/Section 7 Parts ------- > --- POWER (2) -------- (None) > --- PROPULSION (9) --- (None) > --- UTILITY (10) ----- Advanced Signal Interpreter Advanced Terrain Scan Processor > --- WEAPON (2) ------- (None) > --- INVENTORY (5) ---- Core Expander Subatomic Replicator Core Cannon Field Lobotomy Kit (5) Peak State ------------ > --- POWER ------------ Light Ion Engine Micro Antimatter Reactor > --- PROPULSION ------- Nuclear Pulse Array Nuclear Pulse Array Field Propulsion Array Q-thruster Q-thruster Cooled Impulse Thruster > --- UTILITY ---------- Large Storage Unit Structural Scanner Advanced Signal Interpreter Improved Terrain Scanner Advanced Terrain Scan Processor Improved Utility Shielding Hacking Suite Improved Hacking Suite System Shield > --- WEAPON ----------- Matter Neutralizer Force Lance > --- INVENTORY -------- Micro Fission Core Nuclear Pulse Array Q-thruster Micro-nuke Launcher Field Lobotomy Kit [Rating: 118] Favorites ----------- Power Micro Fission Core Engine Light Ion Engine Power Core Micro Fission Core Reactor Micro Antimatter Reactor Propulsion Surge Thruster Hover Unit Airjet Flight Unit Surge Thruster Utility Hacking Suite Device Improved Terrain Scanner Storage Large Storage Unit Processor Advanced Terrain Scan Processor Hackware Hacking Suite Protection Improved Utility Shielding Weapon Force Lance Energy Cannon Matter Neutralizer Launcher Grenade Launcher Special Weapon Field Lobotomy Kit Impact Weapon Flail Slashing Weapon Scythe Piercing Weapon Force Lance Build | -11 -10 -9 -9 -9 -8 -8 -7 -7 -7 -6 -6 -5 -4 -3 -2 -2 -2 ------- Run | Jun Mat Mat Min Exi Min Mat Fac Was Fac Fac DSF Fac Fac Res Res Qua Sec Slots Evolved 16 | . . 2 . . . 2 2 . . 2 . 2 2 2 2 . . Power 1 | . . . . . . . . . . . . 1 . . . . . Propulsion 7 | . . 1 . . . 1 1 . . 1 . . 1 1 1 . . Utility 8 | . . 1 . . . 1 1 . . 1 . 1 1 1 1 . . Weapon . | . . . . . . . . . . . . . . . . . . Parts Attached 66 | . . 5 5 . 1 1 . 2 8 . 9 3 3 7 5 10 7 Power 7 | . . . 1 . . . . . . . . . 1 3 . 2 . Engine 3 | . . . 1 . . . . . . . . . 1 1 . . . Core 2 | . . . . . . . . . . . . . . . . 2 . Reactor 2 | . . . . . . . . . . . . . . 2 . . . Propulsion 25 | . . 3 2 . . . . 1 1 . 5 . . 3 2 4 4 Treads . | . . . . . . . . . . . . . . . . . . Leg . | . . . . . . . . . . . . . . . . . . Wheel . | . . . . . . . . . . . . . . . . . . Hover 5 | . . 3 . . . . . 1 . . . . . . . . 1 Flight 20 | . . . 2 . . . . . 1 . 5 . . 3 2 4 3 Utility 17 | . . . . . 1 1 . . 6 . 3 2 2 1 1 . . Device 4 | . . . . . . 1 . . 1 . . . 2 . . . . Storage 1 | . . . . . . . . . . . . . . . 1 . . Processor 5 | . . . . . 1 . . . 3 . . 1 . . . . . Hackware 6 | . . . . . . . . . 1 . 3 1 . 1 . . . Protection 1 | . . . . . . . . . 1 . . . . . . . . Artifact . | . . . . . . . . . . . . . . . . . . Weapon 17 | . . 2 2 . . . . 1 1 . 1 1 . . 2 4 3 Energy Gun . | . . . . . . . . . . . . . . . . . . Energy Cannon 2 | . . . . . . . . . . . . . . . 1 . 1 Ballistic Gun . | . . . . . . . . . . . . . . . . . . Ballistic Cannon . | . . . . . . . . . . . . . . . . . . Launcher 7 | . . 2 2 . . . . . . . 1 . . . . 1 1 Special Weapon 1 | . . . . . . . . . . . . . . . . 1 . Impact Weapon 1 | . . . . . . . . . 1 . . . . . . . . Slashing Weapon 1 | . . . . . . . . . . . . 1 . . . . . Piercing Weapon 5 | . . . . . . . . 1 . . . . . . 1 2 1 Special Melee Weapon . | . . . . . . . . . . . . . . . . . . Unidentified Prototypes 2 | . . . . . . . . . . . . . . 1 . 1 . Parts Lost 38 | . . 1 . . . 2 . . 2 . 3 1 2 3 7 7 10 Power 5 | . . . . . . 1 . . . . . . . 1 2 . 1 Propulsion 20 | . . 1 . . . 1 . . . . 2 1 1 . 4 4 6 Utility 10 | . . . . . . . . . 2 . . . 1 1 1 3 2 Weapon 3 | . . . . . . . . . . . 1 . . 1 . . 1 Highest Loss Streak 7 | . . 1 . . . 2 . . 2 . 2 1 1 2 7 3 6 To Critical Strikes . | . . . . . . . . . . . . . . . . . . Average Slot Usage (%) 49 | . . 26 30 55 58 49 30 42 57 73 57 64 64 70 69 47 35 Engine 1 | . . . 2 11 11 9 . . . . . . 2 3 4 . . Hover 5 | . . 24 19 11 11 6 . 4 7 6 4 . . . . . 3 Flight 13 | . . . 5 22 22 18 15 15 17 20 9 25 20 18 21 11 9 Device 3 | . . . . . . . 7 7 8 6 . . 3 9 8 4 . Processor 7 | . . . . . 3 9 7 7 9 13 13 11 10 9 8 8 8 Hackware 8 | . . . . . . . . . 1 6 17 17 16 18 13 12 6 Protection 1 | . . . . . . . . . . 6 6 5 5 4 4 . . Launcher 1 | . . 2 3 11 11 6 . . . . . . . . . . . Piercing Weapon 2 | . . . . . . . . 6 7 6 . . . . . 3 3 Naked Turns 40 | . 28 12 . . . . . . . . . . . . . . . Heaviest Build 51 | . . 4 6 6 6 6 1 7 11 11 10 4 9 18 51 33 8 Greatest Support 64 | 3 3 24 8 8 8 8 8 8 14 14 19 19 19 41 64 35 42 Greatest Overweight (x) 1 | . . 1 . . . . . . . . . . . . 1 . . Average Overweight (x) . | . . . . . . . . . . . . . . . . . . Largest Inventory Capacity 15 | 5 5 5 5 5 5 5 5 5 5 5 5 5 5 5 15 15 5 Average Capacity 5 | 5 5 5 5 5 5 5 5 5 5 5 5 5 5 5 9 8 5 Most Carried 7 | . . 2 4 5 5 5 5 5 5 5 5 5 5 5 7 5 5 Average Carried 4 | . . 1 2 4 5 4 5 5 5 5 4 5 4 4 5 4 4 Final Capacity 15 | 5 5 5 5 5 5 5 5 5 5 5 5 5 5 5 15 5 5 Final Carried 7 | . . 2 4 5 5 5 5 5 5 5 5 5 5 5 7 5 5 Class Distribution -------------------- 30% | Mutant 25% | Hacker-Sprinter 19% | Hacker-Scout 11% | Hacker-Mutant 7% | Scout 5% | Alien-Mutant Dominant Class ---------------- Mutant | -10/Materials Mutant | -9/Materials Mutant | -9/Mines Mutant | -9/Exiles Mutant | -8/Mines Mutant | -8/Materials Mutant | -7/Factory Mutant | -7/Waste Scout | -7/Factory Scout | -6/Factory Hacker-Mutant | -6/DSF Hacker-Sprinter | -5/Factory Hacker-Sprinter | -4/Factory Hacker-Scout | -3/Research Hacker-Scout | -2/Research Hacker-Mutant | -2/Quarantine Hacker-Sprinter | -2/Section 7 Resources | -11 -10 -9 -9 -9 -8 -8 -7 -7 -7 -6 -6 -5 -4 -3 -2 -2 -2 ----------- Run | Jun Mat Mat Min Exi Min Mat Fac Was Fac Fac DSF Fac Fac Res Res Qua Sec Matter Collected 991 | 200 . 44 142 . . . . . . . 15 . 174 31 . 97 288 Remotely . | . . . . . . . . . . . . . . . . . . Salvage Created 491 | . . 144 21 . . . . . . . 34 . 38 31 . 31 192 Parts 53 | . . 16 5 . . . . . . . 8 . 5 2 . 2 15 Haulers Intercepted 1 | . . 1 . . . . . . . . . . . . . . . Recyclers Shooed . | . . . . . . . . . . . . . . . . . . Parts Field Recycled . | . . . . . . . . . . . . . . . . . . Retrieved Matter . | . . . . . . . . . . . . . . . . . . Parts Self-Destructed . | . . . . . . . . . . . . . . . . . . Prevented . | . . . . . . . . . . . . . . . . . . Kills | -11 -10 -9 -9 -9 -8 -8 -7 -7 -7 -6 -6 -5 -4 -3 -2 -2 -2 ------- Run | Jun Mat Mat Min Exi Min Mat Fac Was Fac Fac DSF Fac Fac Res Res Qua Sec Combat Hostiles Destroyed 18 | . . 4 4 . . . . . . . 3 . . . . 4 3 AOE 18 | . . 4 4 . . . . . . . 3 . . . . 4 3 Classes Destroyed 8 | . . 5 . . . . . . . . 1 . . 1 . . 1 Worker 2 | . . 2 . . . . . . . . . . . . . . . Builder 4 | . . 2 . . . . . . . . . . 2 . . . . Hauler 1 | . . 1 . . . . . . . . . . . . . . . Recycler 1 | . . 1 . . . . . . . . . . . . . . . Operator 1 | . . . . . . . . . . . . . . 1 . . . Swarmer 15 | . . 4 4 . . . . . . . . . . . . 4 3 Cutter 3 | . . . . . . . . . . . 3 . . . . . . Researcher 2 | . . . . . . . . . . . . . . . . . 2 Best Kill Streak 10 | . . 10 4 . . . . . . . 3 . 1 1 . 4 3 Combat Bots Only 4 | . . 4 4 . . . . . . . 3 . . . . 4 3 Max Kills in Single Turn 4 | . . 4 2 . . . . . . . 3 . 1 1 . 2 3 Gunslinging . | . . . . . . . . . . . . . . . . . . Exploded 3 | . . 3 2 . . . . . . . 3 . . . . 2 3 Melee . | . . . . . . . . . . . . . . . . . . Uniques/NPCs Destroyed . | . . . . . . . . . . . . . . . . . . Combat | -11 -10 -9 -9 -9 -8 -8 -7 -7 -7 -6 -6 -5 -4 -3 -2 -2 -2 -------- Run | Jun Mat Mat Min Exi Min Mat Fac Was Fac Fac DSF Fac Fac Res Res Qua Sec Damage Taken 5017 | . 9 159 62 . 31 100 . . 121 . 285 99 137 340 832 1160 1682 Core 2160 | . 9 34 31 . 13 45 . . 43 . 115 . 24 77 174 551 1044 Absorbed by Shields 29 | . . . . . . . . . 29 . . . . . . . . Redirected to Shielding 94 | . . . . . . . . . . . 9 . 11 19 55 . . Core Remaining (%) 93 | 100 96 . . . 80 91 . . 93 . 86 100 97 94 . . . Volleys Fired 17 | . . 3 7 . . . . . . . 1 . . . 1 4 1 Largest 1 | . . 1 1 . . . . . . . 1 . . . 1 1 1 Hottest 105 | . . 33 33 . . . . . . . 33 . . . 105 49 49 Shots Fired 17 | . . 3 7 . . . . . . . 1 . . . 1 4 1 Gun . | . . . . . . . . . . . . . . . . . . Cannon 1 | . . . . . . . . . . . . . . . 1 . . Launcher 16 | . . 3 7 . . . . . . . 1 . . . . 4 1 Special . | . . . . . . . . . . . . . . . . . . Kinetic . | . . . . . . . . . . . . . . . . . . Thermal 1 | . . . . . . . . . . . . . . . 1 . . Explosive 16 | . . 3 7 . . . . . . . 1 . . . . 4 1 Electromagnetic . | . . . . . . . . . . . . . . . . . . Robot Hit Streak 3 | . . 2 2 . . . . . . . . . . . . 2 3 Robot Miss Streak 2 | . . 1 1 . . . . . . . 1 . . . . 2 . Penetration Max . | . . . . . . . . . . . . . . . . . . Secondary Targets . | . . . . . . . . . . . . . . . . . . Shots Hit Robots 15 | . . 2 2 . . . . . 1 . . . 2 3 . 2 3 Core Hits 31 | . . 12 4 . . . . . . . 4 . 2 1 . 5 3 Critical Kills . | . . . . . . . . . . . . . . . . . . Critical Parts Destroyed . | . . . . . . . . . . . . . . . . . . Critical Strikes 1 | . . . . . . . . . . . . . . . . . 1 Impale 1 | . . . . . . . . . . . . . . . . . 1 Melee Attacks 48 | . . . . . . . . . 1 . . . 3 8 . 14 22 Impact . | . . . . . . . . . . . . . . . . . . Slashing 11 | . . . . . . . . . . . . . 3 8 . . . Piercing 37 | . . . . . . . . . 1 . . . . . . 14 22 Sneak Attacks 4 | . . . . . . . . . . . . . 2 . . . 2 Combat Hostiles . | . . . . . . . . . . . . . . . . . . Follow-up Attacks . | . . . . . . . . . . . . . . . . . . Damage Inflicted 2454 | . 9 503 256 . . . . . 55 . 119 . 135 147 . 730 500 Guns . | . . . . . . . . . . . . . . . . . . Cannons . | . . . . . . . . . . . . . . . . . . Explosions 1877 | . . 503 239 . . . . . . . 119 . . . . 730 286 Melee 530 | . . . . . . . . . 55 . . . 135 146 . . 194 Ramming 47 | . 9 . 17 . . . . . . . . . . 1 . . 20 Kinetic . | . . . . . . . . . . . . . . . . . . Thermal . | . . . . . . . . . . . . . . . . . . Explosive 1877 | . . 503 239 . . . . . . . 119 . . . . 730 286 Electromagnetic . | . . . . . . . . . . . . . . . . . . Impact . | . . . . . . . . . . . . . . . . . . Slashing 281 | . . . . . . . . . . . . . 135 146 . . . Piercing 249 | . . . . . . . . . 55 . . . . . . . 194 Highest Corruption 9 | . . . . . . . . 9 9 . . 1 . 1 1 1 . Average Corruption 4 | . . . . . . . . 9 9 . . 1 . 1 1 1 . Corruption Purged . | . . . . . . . . . . . . . . . . . . Corruption Blocked . | . . . . . . . . . . . . . . . . . . Effects 13 | . . . . . . . . 2 8 . . 2 . . . 1 . Message Errors 3 | . . . . . . . . . 2 . . . . . . 1 . Matter Fused 5 | . . . . . . . . 1 3 . . 1 . . . . . Heat Flow Errors 2 | . . . . . . . . 1 1 . . . . . . . . Energy Discharges 2 | . . . . . . . . . 1 . . 1 . . . . . Data Loss (minor) 1 | . . . . . . . . . 1 . . . . . . . . Overload Shots . | . . . . . . . . . . . . . . . . . . Overflow Damage 466 | . . 52 16 . . . . . 20 . . . . 40 . 108 230 Projectiles . | . . . . . . . . . . . . . . . . . . Explosions 212 | . . 52 16 . . . . . . . . . . . . 108 36 Melee 254 | . . . . . . . . . 20 . . . . 40 . . 194 Knockbacks . | . . . . . . . . . . . . . . . . . . Impact . | . . . . . . . . . . . . . . . . . . Kinetic . | . . . . . . . . . . . . . . . . . . Secondary . | . . . . . . . . . . . . . . . . . . Self-Inflicted Damage 126 | . 4 74 38 . . . . . . . . . . . . . 10 Shots 3 | . . 2 1 . . . . . . . . . . . . . . Rammed 15 | . 2 . 5 . . . . . . . . . . 1 . . 7 Targets Rammed 15 | . 2 . 5 . . . . . . . . . . 1 . . 7 Kicked . | . . . . . . . . . . . . . . . . . . Crushed . | . . . . . . . . . . . . . . . . . . Highest Temperature 234 | . . . 4 . 3 . . 154 234 . . . . . 92 . . Average Temperature 59 | . . . 3 . 3 . . 88 128 . . . . . 37 . . Received Heat Transfer 618 | . . 18 9 . 18 63 . . 96 . . . 18 45 45 117 189 Siege Activations . | . . . . . . . . . . . . . . . . . . Robots Corrupted . | . . . . . . . . . . . . . . . . . . Combat Hostiles . | . . . . . . . . . . . . . . . . . . Parts Fried . | . . . . . . . . . . . . . . . . . . Impact Corruptions . | . . . . . . . . . . . . . . . . . . Robots Melted . | . . . . . . . . . . . . . . . . . . Combat Hostiles . | . . . . . . . . . . . . . . . . . . Parts Melted . | . . . . . . . . . . . . . . . . . . Heat Transferred . | . . . . . . . . . . . . . . . . . . Parts Sabotaged . | . . . . . . . . . . . . . . . . . . Parts Stolen . | . . . . . . . . . . . . . . . . . . Parts Stripped . | . . . . . . . . . . . . . . . . . . Power Chain Reactions . | . . . . . . . . . . . . . . . . . . Missiles Intercepted . | . . . . . . . . . . . . . . . . . . Alert | -11 -10 -9 -9 -9 -8 -8 -7 -7 -7 -6 -6 -5 -4 -3 -2 -2 -2 ------- Run | Jun Mat Mat Min Exi Min Mat Fac Was Fac Fac DSF Fac Fac Res Res Qua Sec Peak Influence 2394 | . . 162 261 . . 15 . 30 91 44 109 169 242 282 223 2212 2394 Initial 1238 | . . . 63 . . . . . 21 44 30 56 82 126 155 108 1238 Average 705 | . . 55 151 . . 5 . 16 49 44 49 79 164 178 188 1970 1976 Maximum Alert Level 5 | . . . 1 . . . . . . . . . 1 1 1 5 5 Low Security (%) 58 | 100 100 100 72 . 100 100 100 100 100 100 100 100 67 73 70 . . Level 1 8 | . . . 27 . . . . . . . . . 32 26 29 . . Level 2 . | . . . . . . . . . . . . . . . . . . Level 3 . | . . . . . . . . . . . . . . . . . . Level 4 . | . . . . . . . . . . . . . . . . . . Level 5 . | . . . . . . . . . . . . . . . . . . High Security . | . . . . . . . . . . . . . . . . . . Max Security 32 | . . . . . . . . . . . . . . . . 99 99 Squads Dispatched 51 | . . . . . . . . . 1 . 1 3 . 2 3 21 20 Investigation 8 | . . . . . . . . . 1 . . 3 . 2 2 . . Extermination . | . . . . . . . . . . . . . . . . . . Reinforcement 3 | . . . . . . . . . . . 1 . . . 1 1 . Assault 40 | . . . . . . . . . . . . . . . . 20 20 Garrison . | . . . . . . . . . . . . . . . . . . Intercept . | . . . . . . . . . . . . . . . . . . Searches Triggered . | . . . . . . . . . . . . . . . . . . Construction Impeded 1 | . . . . . . . . . . . . . . . . 1 . Haulers Reinforced . | . . . . . . . . . . . . . . . . . . Active Scanning Responses . | . . . . . . . . . . . . . . . . . . Cargo Convoy Interrupts . | . . . . . . . . . . . . . . . . . . Stealth | -11 -10 -9 -9 -9 -8 -8 -7 -7 -7 -6 -6 -5 -4 -3 -2 -2 -2 --------- Run | Jun Mat Mat Min Exi Min Mat Fac Was Fac Fac DSF Fac Fac Res Res Qua Sec Distress Signals 4 | . . . . . . . . . . . . 1 . . 2 1 . Communications Jammed . | . . . . . . . . . . . . . . . . . . Distress Signals . | . . . . . . . . . . . . . . . . . . Times Spotted 229 | . . 5 10 . 3 7 . 6 6 . 5 9 9 17 17 70 65 Peak Tracking Total 32 | . . 4 4 . 3 7 . 6 4 . 4 6 4 13 15 32 28 Tactical Retreats 24 | . . . 1 . . . . . 1 . 2 1 2 2 2 5 8 Traps | -11 -10 -9 -9 -9 -8 -8 -7 -7 -7 -6 -6 -5 -4 -3 -2 -2 -2 ------- Run | Jun Mat Mat Min Exi Min Mat Fac Was Fac Fac DSF Fac Fac Res Res Qua Sec Traps Triggered 8 | . . . . . . . 1 . 3 . . 1 . 1 2 . . Indirectly . | . . . . . . . . . . . . . . . . . . Trap Hack Attempts . | . . . . . . . . . . . . . . . . . . Triggered . | . . . . . . . . . . . . . . . . . . Disarmed . | . . . . . . . . . . . . . . . . . . Reprogrammed . | . . . . . . . . . . . . . . . . . . Reused . | . . . . . . . . . . . . . . . . . . Traps Extracted . | . . . . . . . . . . . . . . . . . . Installed . | . . . . . . . . . . . . . . . . . . Triggered . | . . . . . . . . . . . . . . . . . . Machines | -11 -10 -9 -9 -9 -8 -8 -7 -7 -7 -6 -6 -5 -4 -3 -2 -2 -2 ---------- Run | Jun Mat Mat Min Exi Min Mat Fac Was Fac Fac DSF Fac Fac Res Res Qua Sec Machines Disabled 10 | . . . . . . . . . . . . . . . . 4 6 Max in Single Turn 1 | . . . . . . . . . . . . . . . . 1 1 Machines Repaired . | . . . . . . . . . . . . . . . . . . Machines Sabotaged . | . . . . . . . . . . . . . . . . . . Overloaded Fab Kills . | . . . . . . . . . . . . . . . . . . Hacking | -11 -10 -9 -9 -9 -8 -8 -7 -7 -7 -6 -6 -5 -4 -3 -2 -2 -2 --------- Run | Jun Mat Mat Min Exi Min Mat Fac Was Fac Fac DSF Fac Fac Res Res Qua Sec Machines Accessed 12 | . . . . 2 . . . . 2 1 . 3 1 2 1 . . Terminals 10 | . . . . . . . . . 2 1 . 3 1 2 1 . . Fabricators . | . . . . . . . . . . . . . . . . . . Repair Stations . | . . . . . . . . . . . . . . . . . . Recycling Units . | . . . . . . . . . . . . . . . . . . Scanalyzers . | . . . . . . . . . . . . . . . . . . Garrison Access . | . . . . . . . . . . . . . . . . . . Total Hacks 47 | . . . . 24 . . . . 4 1 . 8 2 7 1 . . Successful 33 | . . . . 24 . . . . . 1 . 3 2 2 1 . . Failed 14 | . . . . . . . . . 4 . . 5 . 5 . . . Catastrophic 2 | . . . . . . . . . 1 . . 1 . . . . . Database Lockouts . | . . . . . . . . . . . . . . . . . . Manual 20 | . . . . 1 . . . . 4 . . 8 2 5 . . . Terminals 23 | . . . . . . . . . 4 1 . 8 2 7 1 . . Fabricators . | . . . . . . . . . . . . . . . . . . Repair Stations . | . . . . . . . . . . . . . . . . . . Recycling Units . | . . . . . . . . . . . . . . . . . . Scanalyzers . | . . . . . . . . . . . . . . . . . . Garrison Access . | . . . . . . . . . . . . . . . . . . Terminal Hacks 29 | . . . . 24 . . . . . 1 . 1 1 1 1 . . Record 23 | . . . . 23 . . . . . . . . . . . . . Open DSF 1 | . . . . . . . . . . 1 . . . . . . . Level Access Points 2 | . . . . . . . . . . . . 1 1 . . . . Branch Access Points 2 | . . . . . . . . . . . . . . 1 1 . . EX-Prototype ID Bank 1 | . . . . 1 . . . . . . . . . . . . . Fabricator Hacks . | . . . . . . . . . . . . . . . . . . Repair Station Hacks . | . . . . . . . . . . . . . . . . . . Recycling Unit Hacks . | . . . . . . . . . . . . . . . . . . Scanalyzer . | . . . . . . . . . . . . . . . . . . Garrison Access Hacks . | . . . . . . . . . . . . . . . . . . Unauthorized Hacks 4 | . . . . . . . . . . . . 2 1 1 . . . Terminals 4 | . . . . . . . . . . . . 2 1 1 . . . Botnet 4 | . . . . . . . . . . . . 2 1 1 . . . Fabricators . | . . . . . . . . . . . . . . . . . . Repair Stations . | . . . . . . . . . . . . . . . . . . Recycling Units . | . . . . . . . . . . . . . . . . . . Scanalyzers . | . . . . . . . . . . . . . . . . . . Garrison Access . | . . . . . . . . . . . . . . . . . . Data Cores Recovered . | . . . . . . . . . . . . . . . . . . Used . | . . . . . . . . . . . . . . . . . . Hacking Detections 7 | . . . . . . . . . 2 . . 2 . 2 1 . . Full Trace Events 5 | . . . . . . . . . 1 . . 2 . 2 . . . Feedback Events 1 | . . . . . . . . . . . . 1 . . . . . Corruption 1 | . . . . . . . . . . . . 1 . . . . . Feedback Blocked . | . . . . . . . . . . . . . . . . . . Robot Schematics Acquired 1 | . . . . . . . . . . . . . . . . . 1 Robots Built . | . . . . . . . . . . . . . . . . . . Authchips . | . . . . . . . . . . . . . . . . . . Time . | . . . . . . . . . . . . . . . . . . Total Robot Build Rating . | . . . . . . . . . . . . . . . . . . Part Schematics Acquired 5 | . . . . . . . . . . . . . . . . . 5 Parts Built . | . . . . . . . . . . . . . . . . . . Authchips . | . . . . . . . . . . . . . . . . . . Time . | . . . . . . . . . . . . . . . . . . Total Part Build Rating . | . . . . . . . . . . . . . . . . . . Parts Repaired . | . . . . . . . . . . . . . . . . . . Time . | . . . . . . . . . . . . . . . . . . Parts Recycled . | . . . . . . . . . . . . . . . . . . Recycled Matter . | . . . . . . . . . . . . . . . . . . Retrieved Matter . | . . . . . . . . . . . . . . . . . . Retrieved Components . | . . . . . . . . . . . . . . . . . . Parts Scanalyzed . | . . . . . . . . . . . . . . . . . . Part Schematics Acquired . | . . . . . . . . . . . . . . . . . . Parts Damaged . | . . . . . . . . . . . . . . . . . . Bothacking | -11 -10 -9 -9 -9 -8 -8 -7 -7 -7 -6 -6 -5 -4 -3 -2 -2 -2 ------------ Run | Jun Mat Mat Min Exi Min Mat Fac Was Fac Fac DSF Fac Fac Res Res Qua Sec Used RIF Installer . | . . . . . . . . . . . . . . . . . . Robots Hacked . | . . . . . . . . . . . . . . . . . . Non-combat . | . . . . . . . . . . . . . . . . . . Combat . | . . . . . . . . . . . . . . . . . . Robot Hacks Applied . | . . . . . . . . . . . . . . . . . . Relay Couplers Released . | . . . . . . . . . . . . . . . . . . Fabnet Peak Effective % . | . . . . . . . . . . . . . . . . . . Robots Rewired . | . . . . . . . . . . . . . . . . . . Allies Hacked . | . . . . . . . . . . . . . . . . . . Hacks Repelled . | . . . . . . . . . . . . . . . . . . Allies | -11 -10 -9 -9 -9 -8 -8 -7 -7 -7 -6 -6 -5 -4 -3 -2 -2 -2 -------- Run | Jun Mat Mat Min Exi Min Mat Fac Was Fac Fac DSF Fac Fac Res Res Qua Sec Total Allies . | . . . . . . . . . . . . . . . . . . Largest Group . | . . . . . . . . . . . . . . . . . . Highest-Rated Group . | . . . . . . . . . . . . . . . . . . Highest-Rated Ally . | . . . . . . . . . . . . . . . . . . Total Orders . | . . . . . . . . . . . . . . . . . . Ally Attacks . | . . . . . . . . . . . . . . . . . . Total Damage . | . . . . . . . . . . . . . . . . . . Kills . | . . . . . . . . . . . . . . . . . . Allies Corrupted . | . . . . . . . . . . . . . . . . . . Allies Melted . | . . . . . . . . . . . . . . . . . . Intel | -11 -10 -9 -9 -9 -8 -8 -7 -7 -7 -6 -6 -5 -4 -3 -2 -2 -2 ------- Run | Jun Mat Mat Min Exi Min Mat Fac Was Fac Fac DSF Fac Fac Res Res Qua Sec Robot Analysis Total . | . . . . . . . . . . . . . . . . . . Derelict Logs Recovered 1 | . . . 1 . . . . . . . . . . . . . . Drone Launches . | . . . . . . . . . . . . . . . . . . Drone Recoveries . | . . . . . . . . . . . . . . . . . . Exploration | -11 -10 -9 -9 -9 -8 -8 -7 -7 -7 -6 -6 -5 -4 -3 -2 -2 -2 ------------- Run | Jun Mat Mat Min Exi Min Mat Fac Was Fac Fac DSF Fac Fac Res Res Qua Sec Turns Passed 2421 | 10 28 94 250 78 31 47 9 94 252 25 126 160 201 154 104 388 370 Spaces Moved 5368 | 20 51 146 481 207 80 119 24 211 495 72 186 432 545 350 351 898 700 Core 594 | 20 51 141 329 . . . . . . . . . . . . 43 10 Treads . | . . . . . . . . . . . . . . . . . . Legs . | . . . . . . . . . . . . . . . . . . Wheels . | . . . . . . . . . . . . . . . . . . Hover 114 | . . 5 . . . . . . 21 . 88 . . . . . . Flight 4660 | . . . 152 207 80 119 24 211 474 72 98 432 545 350 351 855 690 Fastest Speed 24 | 50 50 50 37 37 37 37 37 37 34 34 26 30 30 25 24 32 31 Average Speed 35 | 50 50 53 45 37 37 37 37 37 37 34 48 30 30 28 26 34 34 Slowest Speed 109 | 50 50 100 50 37 37 37 37 37 70 34 70 30 30 30 109 50 50 Overloaded Moves . | . . . . . . . . . . . . . . . . . . Propulsion Burnouts . | . . . . . . . . . . . . . . . . . . Robots Hopped 47 | . . . 1 . . 3 . . 6 . 1 5 2 4 14 4 7 Cave-ins Triggered . | . . . . . . . . . . . . . . . . . . Teleports 1 | . . . . . . . . . . . . . . . . 1 . Exploration Rate (%) 34 | 4 15 20 91 60 36 17 1 78 18 5 91 17 18 15 14 82 41 Regions Visited 17 Branch Regions 5 Pre-discovered Areas 1 | . . . . 1 . . . . . . . . . . . . . Known Exits Taken 7 | . . . . . . . . . 1 1 . 1 1 1 1 1 . Unknown Exits Taken 7 | 1 1 1 1 1 1 1 . . . . . . . . . . . Scrap Searched 3 | . . . 2 . 1 . . . . . . . . . . . . Spaces Dug 38 | . . . 11 . . . . . . . . . 1 3 1 9 13 Terrain Destroyed 184 | . . 20 63 . . . . . . . 9 . 1 3 1 51 36 Melee 26 | . . . . . . . . . . . . . 1 3 . 9 13 Projectile 1 | . . . . . . . . . . . . . . . 1 . . AOE 157 | . . 20 63 . . . . . . . 9 . . . . 42 23 Terrain Rammed . | . . . . . . . . . . . . . . . . . . Walls Destroyed . | . . . . . . . . . . . . . . . . . . Machines Disabled . | . . . . . . . . . . . . . . . . . . Actions | -11 -10 -9 -9 -9 -8 -8 -7 -7 -7 -6 -6 -5 -4 -3 -2 -2 -2 --------- Run | Jun Mat Mat Min Exi Min Mat Fac Was Fac Fac DSF Fac Fac Res Res Qua Sec Total 5701 | 19 52 157 500 207 80 118 24 225 550 71 220 455 575 384 345 939 780 Wait 146 | . . . . . . . . 13 9 . 12 25 24 17 . 7 39 Move 5268 | 19 50 145 478 206 79 114 24 210 483 71 183 421 540 343 325 890 687 Hop 38 | . . . 1 . . 1 . . 5 . 1 5 2 3 11 3 6 Pick Up 15 | . . 2 2 1 . . . . . . 2 . 2 1 1 3 1 Fast Attach 57 | . . 3 3 . 1 1 . 2 8 . 8 3 2 5 5 5 11 Attach 13 | . . 2 2 . . . . . . . 1 . 1 1 . 4 2 Detach 17 | . . 2 2 . . 1 . . 1 . 5 1 . . 1 2 2 Swap 4 | . . . . . . . . . . . . . . 1 . 3 . Drop 17 | . . . . . . 1 . . . . 7 . 1 1 1 4 2 Fire 17 | . . 3 7 . . . . . . . 1 . . . 1 4 1 Melee 48 | . . . . . . . . . 1 . . . 3 8 . 14 22 Ram 14 | . 2 . 5 . . . . . . . . . . . . . 7 Kick . | . . . . . . . . . . . . . . . . . . Crush . | . . . . . . . . . . . . . . . . . . Escape Stasis 47 | . . . . . . . . . 43 . . . . 4 . . . Rewire . | . . . . . . . . . . . . . . . . . . Trap . | . . . . . . . . . . . . . . . . . . Miscellaneous . | . . . . . . . . . . . . . . . . . . Route ------- -11/Junkyard -10/Materials -9/Materials -9/Mines (discovered 3 exits: [*Mat x2] / *Exi) -9/Exiles -8/Mines -8/Materials -7/Factory -7/Waste -7/Factory -6/Factory -6/DSF -5/Factory (discovered 5 exits: *Fac x4 / *Upp) -4/Factory (discovered 4 exits: *Res x4) -3/Research (discovered 4 exits: *Res / Arm / Tes x2) -2/Research (discovered 2 exits: *Qua x2) -2/Quarantine (discovered 2 exits: [*Acc] / *Sec) -2/Section 7 History --------- Turn | Location | Event 3 | -11/Junkyard | Discovered new exit (range 15) 11 | -11/Junkyard | Entered Materials 34 | -10/Materials | Discovered new exit (range 9) 39 | -10/Materials | Entered another Materials area 39 | -9/Materials | Evolved 2 slots: Propulsion x1, Utility x1 128 | -9/Materials | Discovered new exit (range 10) 133 | -9/Materials | Entered Mines 170 | -9/Mines | Discovered new exit (range 13) 259 | -9/Mines | Assembled infested the area 313 | -9/Mines | Build established: Mutant 330 | -9/Mines | Discovered new exit (range 12) 367 | -9/Mines | Learned Materials stockpile data 381 | -9/Mines | Discovered new exit (range 5) 383 | -9/Mines | Entered Exiles 392 | -9/Exiles | Met 8R-AWN 399 | -9/Exiles | Met EX-HEX 409 | -9/Exiles | Met EX-BIN 413 | -9/Exiles | Aligned with FarCom system 413 | -9/Exiles | Given EX-Vault access code 422 | -9/Exiles | Opened EX-Vault 424 | -9/Exiles | Found Field Lobotomy Kit 433 | -9/Exiles | Warned to stay clear of 0b10 Research branches 443 | -9/Exiles | Met EX-DEC 445 | -9/Exiles | Learned location of Zion (-6) 457 | -9/Exiles | Discovered new exit (range 12) 461 | -9/Exiles | Left Exiles lab with Field Lobotomy Kit 461 | -9/Exiles | Entered Mines 489 | -8/Mines | Discovered new exit (range 6) 492 | -8/Mines | Entered Materials 492 | -8/Materials | Evolved 2 slots: Propulsion x1, Utility x1 538 | -8/Materials | Discovered new exit (range 4) 539 | -8/Materials | Entered Factory 539 | -7/Factory | Evolved 2 slots: Propulsion x1, Utility x1 548 | -7/Factory | Manually triggered Chute Trap 548 | -7/Factory | Sucked down chute 548 | -7/Factory | Entered Waste 563 | -7/Waste | EMP discharged 587 | -7/Waste | Spotted C-40 Crusher 587 | -7/Waste | Spotted C-40 Crusher 588 | -7/Waste | Spotted C-40 Crusher 594 | -7/Waste | Spotted C-40 Crusher 620 | -7/Waste | Spotted C-40 Crusher 636 | -7/Waste | Discovered new exit (range 17) 639 | -7/Waste | Spotted C-40 Crusher 642 | -7/Waste | Entered Factory 862 | -7/Factory | Discovered new exit (range 15) 881 | -7/Factory | Identified exit to Factory 894 | -7/Factory | Entered another Factory area 894 | -6/Factory | Evolved 2 slots: Propulsion x1, Utility x1 919 | -6/Factory | Identified exit to DSF 919 | -6/Factory | Entered DSF 949 | -6/DSF | Additional patrols routed to DSF 985 | -6/DSF | Discovered new exit (range 15) 1044 | -6/DSF | Identified exit to Factory 1045 | -6/DSF | Entered Factory 1045 | -5/Factory | Evolved 2 slots: Power x1, Utility x1 1162 | -5/Factory | Discovered new exit (range 9) 1165 | -5/Factory | Identified exit to Upper Caves 1201 | -5/Factory | Identified exit to Factory 1205 | -5/Factory | Entered another Factory area 1205 | -4/Factory | Evolved 2 slots: Propulsion x1, Utility x1 1284 | -4/Factory | Build established: Hacker-Sprinter 1386 | -4/Factory | Identified exit to Research 1406 | -4/Factory | Entered Research 1406 | -3/Research | Evolved 2 slots: Propulsion x1, Utility x1 1511 | -3/Research | Identified exit to Armory 1511 | -3/Research | Identified exit to Testing 1539 | -3/Research | Discovered new exit (range 14) 1556 | -3/Research | Identified exit to Research 1560 | -3/Research | Entered another Research area 1560 | -2/Research | Evolved 2 slots: Propulsion x1, Utility x1 1597 | -2/Research | Identified exit to Quarantine 1610 | -2/Research | Build established: Hacker-Scout 1659 | -2/Research | Spotted B-90 Cyclops 1664 | -2/Research | Entered Quarantine 1665 | -2/Quarantine | Maximum security lockdown engaged 1695 | -2/Quarantine | Lost 7 parts (2p4n1u) 1910 | -2/Quarantine | Found Alien Artifact 1910 | -2/Quarantine | Identified Core Reset Matrix 1910 | -2/Quarantine | Used Core Reset Matrix 1914 | -2/Quarantine | Detected hypermatrix surge 1914 | -2/Quarantine | Sensed 14 artifacts in vicinity 1914 | -2/Quarantine | Spotted Executioner 1914 | -2/Quarantine | Spotted Executioner 1914 | -2/Quarantine | Spotted Striker 1918 | -2/Quarantine | Found Hpw. Transdimensional Reconstructor 1918 | -2/Quarantine | Warped through subspace 1943 | -2/Quarantine | Lost 3 parts (3n) 1966 | -2/Quarantine | Found Subatomic Replicator 1976 | -2/Quarantine | Discovered new exit (range 5) 1999 | -2/Quarantine | Found Core Cannon 2025 | -2/Quarantine | Spotted Fortress 2046 | -2/Quarantine | Core integrity fell below 50% 2050 | -2/Quarantine | Discovered new exit (range 5) 2051 | -2/Quarantine | Identified exit to Section 7 2052 | -2/Quarantine | Entered Section 7 2053 | -2/Section 7 | Maximum security lockdown engaged 2053 | -2/Section 7 | Sensed 19 artifacts in vicinity 2058 | -2/Section 7 | Spotted S7 Guard 2062 | -2/Section 7 | Found Core Regenerator 2062 | -2/Section 7 | Used Core Regenerator, restored core integrity (+362) 2078 | -2/Section 7 | Found Integrated Reactor 2078 | -2/Section 7 | Installed Integrated Reactor, increased core energy generation (+10) 2138 | -2/Section 7 | Found Integrated Reactor 2138 | -2/Section 7 | Installed Integrated Reactor, increased core energy generation (+10) 2196 | -2/Section 7 | Spotted Executioner 2196 | -2/Section 7 | Spotted Striker 2265 | -2/Section 7 | Spotted S7 Guard 2271 | -2/Section 7 | Found Core Membrane 2271 | -2/Section 7 | Installed Core Membrane, gained immunity to corruption 2297 | -2/Section 7 | Spotted S7 Guard 2314 | -2/Section 7 | Spotted Alpha 7 2314 | -2/Section 7 | Spotted Alpha 7 2321 | -2/Section 7 | Spotted B-99 Colossus 2338 | -2/Section 7 | Lost 6 parts (1p4n1u) 2342 | -2/Section 7 | Found Integrated Dissipator 2342 | -2/Section 7 | Installed Integrated Dissipator, increased core heat dissipation (+20) 2344 | -2/Section 7 | Found Integrated Dissipator 2344 | -2/Section 7 | Installed Integrated Dissipator, increased core heat dissipation (+20) 2367 | -2/Section 7 | Found Core Expander 2405 | -2/Section 7 | Spotted Striker 2414 | -2/Section 7 | Core integrity fell below 20% 2422 | -2/Section 7 | Destroyed by Striker with Compact Linear Accelerator Last Messages --------------- 02407_ Penetrated by Slug. 02407_ Slug penetrates Reinforced Barrier. 02407_ Machine disabled. 02408_ Penetrated by Slug. 02410_ Core Membrane filtered system corruption (1). 02410_ Acquired 34 matter. 02410_ Antigrav Array destroyed. 02410_ Cesium-ion Thruster destroyed. 02410_ Slammed into G-73 Enforcer. 02412_ P-80 Master resets G-73 Enforcer, system corruption cleaned. 02412_ Slammed into G-73 Enforcer. 02412_ Adv. Signal Interpreter broken. 02412_ Destabilizing: Short circuit. 02413_ Slammed into G-73 Enforcer. 02415_ Lance destroyed. 02415_ Slammed into G-73 Enforcer. 02416_ G-73 Enforcer knocked back. 02417_ Slammed into G-73 Enforcer. 02418_ Core Membrane filtered system corruption (1). 02419_ P-80 Master resets G-73 Enforcer, system corruption cleaned. Map ----- +----------------------------------------------------+ | ??? ????????????????????????????????????????? | | ?? ????????????????????????????????????????? | | ?? "????????????????????????????????????????? | | ?? "????????????????????????????????????????? | | ?? """"???? ????????????????????????????????? | | "" ???? ???????????????????????????????? | | """ ?????? ? ??"????????????????????????? | | """ "??????? " "???????????????????????? | | """ "????""" "" ????"""?????????????????? | | """""" ???? ???????????????? | | ? ""?"" ?????????????? | | ?? "" ?????????????? | | "???" " ????????????? | | """?" ????????????? | | gb "?" ????????????? | | " " g """"" ?????????????? | | """ ??p???????????? | | """ ??????????????? | | "" ?????p??????????? | | " """??????????????????? | | """""""""""" #?????????????????????? | | """""""""""" #?????????????????????? | | #################### ###++#?????????????????????? | | ???????????????????# #?# #?????????????????????? | | ???????????????????####?# #?????????????????????? | | ????????????????????????#@ #?????????????????????? | | ????????????????????????#% #???????#######???????? | | ????????????????????????# #??????""" "???????? | | ????????????????????????# #??#"?"""" "???????? | | ????????????????????????# #??#"""""" ?????? | | ?????????????############K #### " """""#??? | | ?????????????# " g g p """""#??? | | ?????????????#"%%%phghgg """""#??? | | ?????????????# "###############" """""#??? | | ?????????#####i%#?????????????#"" C "#??? | | ??????#### # "#####?????????#" "C "#??? | | ??????#" "" "" """"#?????????????""""" ]"" "#??? | | ??????#" $$ ! g """#?????????????##### # ####??? | | ??????#"!$% ! i"""#?????????????????# ###?????? | | ??????#"""""| ""#?????????????????# #???????? | | ??????#""""" ""#?????????????????# #???????? | | ??????#""""" """#?????????????????# #???????? | | ??????#""""" """#??##############?# #???????? | | ??????#" """"#?#"""""""""""""#?# #???????? | | ??????#""""" """#?#"" """" #?# #???????? | | ??????#""""" """"#?#"" """" #?# #???????? | | ???????####### #####?#"" """" ### #???????? | | ?????????????# #?????#"" """" #???????? | | ?????????????# #?????# #???????? | | ?????????????# #?????# ######???????? | +----------------------------------------------------+ Best States ------------- Heat Dissipation 89 Energy Generation 35 Energy Capacity 175 Matter Stores 300 Matter Capacity 300 Sight Range 18 Terrain Scan Range 16 Terrain Scan Density 210 Utility Shielding 66 Evasion (%) 70 Offensive Hacking 32 Defensive Hacking 10 Item Schematics ----------------- Diametric Drive | -2/Section 7 | Archive Cld. Proton Cannon | -2/Section 7 | Archive Adv. Gravity Neutralizer | -2/Section 7 | Archive Com. Linear Accelerator | -2/Section 7 | Archive Exp. Gyrokinetic Inverter | -2/Section 7 | Archive Robot Schematics ------------------ A-27 Freighter | -2/Section 7 | Archive Fabricated ------------ Nothing Alien Tech Used ----------------- Core Reset Matrix High-powered Transdimensional Reconstructor Core Regenerator Integrated Reactor Core Cannon Core Membrane Integrated Dissipator Achievements -------------- None Challenges ------------ None Game ------ Seed ParticleTacticalStreamer Manual? 0 Play Time 00:47:33 Cumulative 387.6 hours Start 2023.10.26 @ 10:08:29 End 2023.10.26 @ 11:07:26 Sessions 3 Manual Loads 0 Difficulty Rogue Special Mode None Game No. 152 Rogue 136 Adventurer 8 Explorer 8 Win Type - Total 31 Types 12/1/11/1/1/2/3/0/0 Lore% 91 Gallery% 89 Achievement% 78 Wizard Run 0 Options --------- ASCII 1 Keyboard 1 Movement Vi Keybinds 0 Fullscreen 2 Font 18/SmallcapsGlow Map View 76x50 Tactical HUD 1 Map Filters NONE Filters NONE Steam 0 RUN: 22f0c74b-e976-448b-89d4-22bab2af7ed5